bitfinex/quotes_BTCUSD_20250727
["timestamp","ask_amount","ask_price","bid_price","bid_amount"]
[1753612700666,0.02004,118260.0,118250.0,4.304189]
[1753612700895,0.02004,118260.0,118250.0,4.282249]
[1753612701503,0.02004,118260.0,118250.0,4.053643]
[1753612701708,0.02004,118260.0,118250.0,4.232815]
[1753612702738,0.02004,118260.0,118250.0,5.49654]
[1753612702946,0.02004,118260.0,118250.0,5.32729]
[1753612703335,0.02004,118260.0,118250.0,6.02729]
[1753612703547,0.02004,118260.0,118250.0,4.901868]
[1753612703767,0.02004,118260.0,118250.0,5.814096]
[1753612704822,0.02004,118260.0,118250.0,6.004493]
[1753612705036,0.02004,118260.0,118250.0,4.248801]
[1753612705708,0.02004,118260.0,118250.0,4.20336]
[1753612706813,0.01158229,118260.0,118250.0,4.147458]
[1753612707241,0.00312458,118260.0,118250.0,4.147458]
[1753612707669,4e-05,118270.0,118260.0,3.01049587]
[1753612707894,4e-05,118270.0,118260.0,3.26290117]
[1753612708098,4e-05,118270.0,118260.0,3.25190217]
[1753612708303,4e-05,118270.0,118260.0,2.85467617]
[1753612709002,4e-05,118270.0,118260.0,2.88852017]
[1753612710070,4e-05,118270.0,118260.0,3.25576617]
[1753612710290,4e-05,118270.0,118260.0,3.25676617]
[1753612711122,4e-05,118270.0,118260.0,3.39409517]
[1753612711337,4e-05,118270.0,118260.0,3.03509517]
[1753612711842,4e-05,118270.0,118260.0,3.01760417]
[1753612712095,4e-05,118270.0,118260.0,0.87881217]
[1753612712374,4e-05,118270.0,118260.0,3.01506517]
[1753612712838,4e-05,118270.0,118260.0,2.05459017]
[1753612713078,4e-05,118270.0,118260.0,0.87881217]
[1753612713313,4e-05,118270.0,118260.0,2.37512217]
[1753612713999,0.00849458,118270.0,118260.0,2.22973717]
[1753612714222,0.0169493,118270.0,118260.0,2.16081417]
[1753612714449,0.00849458,118270.0,118260.0,1.93398017]
[1753612714697,0.03385918,118270.0,118260.0,1.54456973]
[1753612714931,0.06394433,118270.0,118260.0,1.3533121]
[1753612715177,0.22459434,118270.0,118260.0,1.31312824]
[1753612715425,0.25237969,118270.0,118260.0,0.99992573]
[1753612715654,0.25237969,118270.0,118260.0,0.87346931]
[1753612716323,0.25237969,118270.0,118260.0,0.99775331]
[1753612716542,0.25237969,118270.0,118260.0,1.00620882]
[1753612717232,0.25237969,118270.0,118260.0,0.77510782]
[1753612717458,0.25237969,118270.0,118260.0,1.01287982]
[1753612717972,0.08327496,118270.0,118260.0,1.02133526]
[1753612718219,0.09173011,118270.0,118260.0,1.02133526]
[1753612718428,0.09173011,118270.0,118260.0,1.16568426]
[1753612719356,0.09173011,118270.0,118260.0,1.16567426]
[1753612720217,0.2608347,118270.0,118260.0,1.16567426]
[1753612720432,0.09173011,118270.0,118260.0,1.06684826]
[1753612720901,0.07089011,118270.0,118260.0,1.09128826]
[1753612721333,0.07089011,118270.0,118260.0,1.07927826]
[1753612721591,0.2399947,118270.0,118260.0,1.07927826]
[1753612722068,0.07089011,118270.0,118260.0,1.07927826]
[1753612722298,0.05549011,118270.0,118260.0,1.07927826]
[1753612722540,0.05549011,118270.0,118260.0,1.20876626]
[1753612723448,0.03857952,118270.0,118260.0,1.18725226]
[1753612723670,0.01903952,118270.0,118260.0,1.18725226]
[1753612723890,0.01903952,118270.0,118260.0,1.18929226]
[1753612724116,0.01903952,118270.0,118260.0,1.19253226]
[1753612724578,0.01903952,118270.0,118260.0,1.33526026]
[1753612724800,0.02749453,118270.0,118260.0,1.08526026]
[1753612725022,0.02749446,118270.0,118260.0,1.08526026]
[1753612725244,0.04379446,118270.0,118260.0,1.08526026]
[1753612725498,0.04379446,118270.0,118260.0,1.24145426]
[1753612726139,0.02749446,118270.0,118260.0,1.24145426]
[1753612726611,0.02749446,118270.0,118260.0,1.50527126]
[1753612727276,0.02749446,118270.0,118260.0,1.11527126]
[1753612727522,0.02749446,118270.0,118260.0,0.81328326]
[1753612727717,0.02749446,118270.0,118260.0,1.19215526]
[1753612728535,0.02749446,118270.0,118260.0,1.44604926]
[1753612728736,0.02749446,118270.0,118260.0,1.31193526]
[1753612729159,0.00849465,118270.0,118260.0,1.10709826]
[1753612729387,4e-05,118270.0,118260.0,1.51906226]
[1753612729614,0.00849458,118270.0,118260.0,1.49215326]
[1753612730028,0.0169493,118270.0,118260.0,1.49215326]
[1753612730475,0.02540417,118270.0,118260.0,1.49215326]
[1753612730701,0.02540417,118270.0,118260.0,1.71502826]
[1753612730885,0.02540417,118270.0,118260.0,0.82918326]
[1753612731109,0.02540417,118270.0,118260.0,1.64762426]
[1753612731352,0.02540417,118270.0,118260.0,1.49892126]
[1753612731602,0.02540417,118270.0,118260.0,1.52098426]
[1753612731828,0.02540417,118270.0,118260.0,1.49886626]
[1753612732277,0.02540417,118270.0,118260.0,1.48168626]
[1753612732508,0.02540417,118270.0,118260.0,1.55888026]
[1753612732728,0.0169493,118270.0,118260.0,1.55888026]
[1753612733170,0.02540417,118270.0,118260.0,1.55888026]
[1753612733610,0.02540417,118270.0,118260.0,1.43972126]
[1753612733828,0.03385911,118270.0,118260.0,1.43972126]
[1753612734526,0.03385911,118270.0,118260.0,0.82918326]
[1753612734767,0.02540417,118270.0,118260.0,1.46791826]
[1753612735673,0.02540417,118270.0,118260.0,1.48517526]
[1753612736539,0.02540417,118270.0,118260.0,1.45812426]
[1753612736770,0.02540417,118270.0,118260.0,1.48156126]
[1753612737659,0.02540417,118270.0,118260.0,0.82918326]
[1753612737879,0.02540417,118270.0,118260.0,1.44672926]
[1753612738534,0.03385911,118270.0,118260.0,1.37274926]
[1753612738740,0.03385911,118270.0,118260.0,1.40703126]
[1753612738980,0.00849458,118270.0,118260.0,1.37624426]
[1753612739210,0.0169493,118270.0,118260.0,1.37624426]
[1753612739416,0.00849458,118270.0,118260.0,1.37624426]
[1753612739808,0.0169493,118270.0,118260.0,1.37624426]
[1753612740033,0.00849458,118270.0,118260.0,1.85113326]
[1753612740249,0.0169493,118270.0,118260.0,1.85113326]
[1753612740421,0.00849458,118270.0,118260.0,2.05413326]
[1753612740870,0.00849458,118270.0,118260.0,2.56268126]
[1753612741132,0.00849458,118270.0,118260.0,1.99877626]
[1753612741333,0.0169493,118270.0,118260.0,1.99877626]
[1753612741557,0.00849458,118270.0,118260.0,1.76346426]
[1753612741774,0.00849458,118270.0,118260.0,1.75181126]
[1753612742003,0.0169493,118270.0,118260.0,1.87419826]
[1753612742218,0.01694923,118270.0,118260.0,1.87419826]
[1753612742652,0.01694923,118270.0,118260.0,1.78959526]
[1753612742871,0.01694923,118270.0,118260.0,1.61021126]
[1753612743341,0.01694923,118270.0,118260.0,1.59821126]
[1753612744194,0.01694923,118270.0,118260.0,1.59176626]
[1753612745111,0.01694923,118270.0,118260.0,1.03218326]
[1753612745255,0.01694923,118270.0,118260.0,1.63914026]
[1753612746156,0.01694923,118270.0,118260.0,1.70253126]
[1753612746391,0.01694923,118270.0,118260.0,1.68527826]
[1753612746830,0.00849458,118270.0,118260.0,1.68527826]
[1753612747321,0.00849458,118270.0,118260.0,1.81368326]
[1753612747791,0.03591918,118270.0,118260.0,0.81604521]
[1753612748005,0.23995434,118270.0,118260.0,0.98650681]
[1753612748260,0.23995434,118270.0,118260.0,1.00341804]
[1753612748564,0.23995491,118270.0,118260.0,0.99496246]
[1753612748975,0.23995491,118270.0,118260.0,1.00337804]
[1753612749201,0.23995491,118270.0,118260.0,1.11623104]
[1753612749886,0.23995491,118270.0,118260.0,1.12468655]
[1753612751320,0.0623951,118270.0,118260.0,1.12468655]
[1753612751740,0.0591651,118270.0,118260.0,1.12468612]
[1753612751950,0.0438651,118270.0,118260.0,1.12468612]
[1753612752190,0.03540995,118270.0,118260.0,1.12468612]
[1753612752561,0.02695465,118270.0,118260.0,1.12981612]
[1753612752773,0.03540952,118270.0,118260.0,1.12981612]
[1753612753001,0.02695465,118270.0,118260.0,1.12981612]
[1753612753224,0.03540952,118270.0,118260.0,1.12981612]
[1753612754235,0.02695465,118270.0,118260.0,1.12981612]
[1753612754450,0.03540937,118270.0,118260.0,1.12981612]
[1753612755123,0.01900937,118270.0,118260.0,1.12981612]
[1753612755601,0.01055465,118270.0,118260.0,1.12981612]
[1753612758013,0.01055458,118270.0,118260.0,1.12981612]
[1753612759297,0.01900938,118270.0,118260.0,1.12981612]
[1753612759731,0.01875852,118270.0,118260.0,1.12981612]
[1753612760442,0.01875844,118270.0,118260.0,1.12981612]
[1753612761054,0.0169093,118270.0,118260.0,1.12981612]
[1753612764577,0.02536417,118270.0,118260.0,1.12981612]
[1753612765013,0.0253641,118270.0,118260.0,1.12981612]
[1753612765710,0.0253641,118270.0,118260.0,1.01700312]
[1753612765922,0.0253641,118270.0,118260.0,1.66610112]
[1753612767167,0.0253641,118270.0,118260.0,1.58541812]
[1753612767547,0.03381897,118270.0,118260.0,1.57211812]
[1753612768851,0.0253641,118270.0,118260.0,1.57211812]
[1753612769388,0.0169093,118270.0,118260.0,1.57211812]
[1753612769801,0.0169093,118270.0,118260.0,1.59792825]
[1753612771820,0.0169093,118270.0,118260.0,1.53980625]
[1753612772080,0.0253641,118270.0,118260.0,1.53980625]
[1753612775455,0.0169093,118270.0,118260.0,1.53980625]
[1753612776913,0.0169093,118270.0,118260.0,1.98636925]
[1753612777113,0.00845458,118270.0,118260.0,1.98636925]
[1753612777559,0.00845458,118270.0,118260.0,1.77005525]
[1753612778194,0.01690923,118270.0,118260.0,1.77005525]
[1753612778904,0.06049317,118280.0,118270.0,0.2034637]
[1753612779080,0.06248317,118280.0,118270.0,0.416621]
[1753612779388,0.05402866,118280.0,118270.0,0.439741]
[1753612779530,0.05402866,118280.0,118270.0,0.44819587]
[1753612779736,0.05079866,118280.0,118270.0,0.439741]
[1753612779945,0.05079866,118280.0,118270.0,0.44819587]
[1753612781339,0.05180711,118280.0,118270.0,0.439741]
[1753612782024,0.05180711,118280.0,118270.0,0.44819587]
[1753612782251,0.05180711,118280.0,118270.0,0.439741]
[1753612782725,0.05180704,118280.0,118270.0,0.44819587]
[1753612783187,0.05180704,118280.0,118270.0,0.439741]
[1753612783624,0.05180704,118280.0,118270.0,0.642741]
[1753612784048,0.05180704,118280.0,118270.0,0.644741]
[1753612784743,0.05180704,118280.0,118270.0,0.64474107]
[1753612785175,0.06026155,118280.0,118270.0,0.65319601]
[1753612786054,0.05180704,118280.0,118270.0,0.65319601]
[1753612787527,0.05180704,118280.0,118270.0,0.66165088]
[1753612787963,0.05180704,118280.0,118270.0,0.65319601]
[1753612788167,0.02644401,118280.0,118270.0,0.65319601]
[1753612788357,0.04335239,118280.0,118270.0,0.66165081]
[1753612788560,0.04335239,118280.0,118270.0,0.66165088]
[1753612789128,0.04335239,118280.0,118270.0,0.66465088]
[1753612790851,0.04335239,118280.0,118270.0,0.67310568]
[1753612791061,0.04335239,118280.0,118270.0,0.66465088]
[1753612791592,0.04335239,118280.0,118270.0,0.67310568]
[1753612791786,0.02445394,118280.0,118270.0,0.74075567]
[1753612792186,0.00845401,118280.0,118270.0,0.68095045]
[1753612792402,0.03290737,118290.0,118280.0,0.02590339]
[1753612792648,0.03290695,118290.0,118280.0,0.19699368]
[1753612792882,0.04335074,118290.0,118280.0,0.22311375]
[1753612793124,0.04335074,118290.0,118280.0,0.23156812]
[1753612793369,0.04335053,118290.0,118280.0,0.30759105]
[1753612793607,0.05180368,118290.0,118280.0,0.31604527]
[1753612793845,0.04435003,118290.0,118280.0,0.31604535]
[1753612794082,0.05280368,118290.0,118280.0,0.31604542]
[1753612794301,0.02636003,118290.0,118280.0,0.31604542]
[1753612794554,0.03581368,118290.0,118280.0,0.30759105]
[1753612794780,0.02736003,118290.0,118280.0,0.32449972]
[1753612795251,0.02736003,118290.0,118280.0,0.33295394]
[1753612795488,0.02736003,118290.0,118280.0,0.32449972]
[1753612795723,0.03581368,118290.0,118280.0,0.30759105]
[1753612795929,0.03581368,118290.0,118280.0,0.31604542]
[1753612796190,0.03581368,118290.0,118280.0,0.30759105]
[1753612796445,0.03581368,118290.0,118280.0,0.31604542]
[1753612796668,0.03581368,118290.0,118280.0,0.30759105]
[1753612797503,0.03581368,118290.0,118280.0,0.31604542]
[1753612797724,0.03581368,118290.0,118280.0,0.29913661]
[1753612797941,0.03581368,118290.0,118280.0,0.31604556]
[1753612798171,0.0442674,118290.0,118280.0,0.30759112]
[1753612798644,0.0442674,118290.0,118280.0,0.31604556]
[1753612798889,0.0442674,118290.0,118280.0,0.30759112]
[1753612799336,0.03581425,118290.0,118280.0,0.30759112]
[1753612800299,0.20489024,118290.0,118280.0,0.29913661]
[1753612800520,0.20489066,118290.0,118280.0,0.29913661]
[1753612801605,0.20689066,118290.0,118280.0,0.29913661]
[1753612801825,0.20689066,118290.0,118280.0,0.30759112]
[1753612802044,0.20689066,118290.0,118280.0,0.29913661]
[1753612803268,0.19843715,118290.0,118280.0,0.29913661]
[1753612805239,0.18152978,118290.0,118280.0,0.29913661]
[1753612812123,0.18152978,118290.0,118280.0,0.13004632]
[1753612812882,0.18152978,118290.0,118280.0,0.29913661]
[1753612823406,0.18152978,118290.0,118280.0,1.24451704]
[1753612823407,0.01045315,118290.0,118280.0,1.24451704]
[1753612823605,0.002,118290.0,118280.0,1.9984624]
[1753612823877,0.002,118290.0,118280.0,1.86081228]
[1753612824109,0.01045322,118290.0,118280.0,1.30645228]
[1753612824333,0.001,118290.0,118280.0,1.30645228]
[1753612824554,0.00945329,118290.0,118280.0,1.77811635]
[1753612824787,0.001,118290.0,118280.0,1.60425036]
[1753612825057,0.00945315,118290.0,118280.0,1.29061136]
[1753612825287,0.00845315,118290.0,118280.0,1.29061136]
[1753612825521,0.00845315,118290.0,118280.0,0.70455336]
[1753612825743,0.00845315,118290.0,118280.0,1.51333336]
[1753612826448,0.03381168,118300.0,118290.0,0.6587078]
[1753612826666,0.03386021,118300.0,118290.0,0.8781551]
[1753612826894,0.03386014,118300.0,118290.0,0.91378882]
[1753612827139,0.03386014,118300.0,118290.0,0.90533503]
[1753612827351,0.03386014,118300.0,118290.0,0.4577061]
[1753612827576,0.02540713,118300.0,118290.0,0.44925231]
[1753612827778,0.02640713,118300.0,118290.0,0.68465431]
[1753612828010,0.02640713,118300.0,118290.0,1.0991081]
[1753612828214,0.03486021,118300.0,118290.0,1.09106182]
[1753612828471,0.03586014,118300.0,118290.0,1.09106182]
[1753612828722,0.02740713,118300.0,118290.0,1.09951547]
[1753612828969,0.02740713,118300.0,118290.0,1.09106182]
[1753612829194,0.01895419,118300.0,118290.0,1.09951547]
[1753612829419,0.02740713,118300.0,118290.0,1.09951547]
[1753612829668,0.02740713,118300.0,118290.0,1.11601547]
[1753612830154,0.01895419,118300.0,118290.0,0.90602656]
[1753612830399,0.0189539,118300.0,118290.0,0.90602656]
[1753612830618,0.02740684,118300.0,118290.0,0.88911947]
[1753612830836,0.02740684,118300.0,118290.0,0.88066582]
[1753612831075,0.02740684,118300.0,118290.0,0.84639982]
[1753612831292,0.03585992,118300.0,118290.0,0.4577061]
[1753612831769,0.02740684,118300.0,118290.0,0.46615982]
[1753612831968,0.03585992,118300.0,118290.0,0.46615982]
[1753612832188,0.03585985,118300.0,118290.0,0.49117599]
[1753612832617,0.03585985,118300.0,118290.0,0.49962964]
[1753612832752,0.02740684,118300.0,118290.0,0.49117599]
[1753612832974,0.03585992,118300.0,118290.0,0.49117599]
[1753612833184,0.02740684,118300.0,118290.0,0.49962964]
[1753612833588,0.02740684,118300.0,118290.0,0.49117599]
[1753612834224,0.03585992,118300.0,118290.0,0.48272227]
[1753612834455,0.02953684,118300.0,118290.0,0.47426848]
[1753612834678,0.03798992,118300.0,118290.0,0.48272227]
[1753612834884,0.03798992,118300.0,118290.0,0.48300227]
[1753612835094,0.03798992,118300.0,118290.0,0.46690227]
[1753612835916,0.03798992,118300.0,118290.0,0.47535599]
[1753612836393,0.02953684,118300.0,118290.0,0.48380964]
[1753612836639,0.02953684,118300.0,118290.0,0.47535599]
[1753612837445,0.02953684,118300.0,118290.0,0.48380964]
[1753612837661,0.20705155,118300.0,118290.0,0.45844848]
[1753612837796,0.20705155,118300.0,118290.0,0.46690227]
[1753612838041,0.03798985,118300.0,118290.0,0.47535599]
[1753612839306,0.03798985,118300.0,118290.0,0.46690227]
[1753612839771,0.01050111,118300.0,118290.0,0.55146006]
[1753612840001,0.01050111,118300.0,118290.0,0.90907057]
[1753612840225,0.01050111,118300.0,118290.0,0.84141973]
[1753612840495,0.01895376,118300.0,118290.0,0.84141973]
[1753612840950,0.01050111,118300.0,118290.0,0.84987302]
[1753612841172,0.01050111,118300.0,118290.0,0.84141973]
[1753612842060,0.01895376,118300.0,118290.0,0.84987317]
[1753612842738,0.01895376,118300.0,118290.0,0.84987274]
[1753612843017,0.01895376,118300.0,118290.0,0.84141945]
[1753612843308,0.01050104,118300.0,118290.0,0.84987274]
[1753612843513,0.00204853,118300.0,118290.0,0.84987274]
[1753612843954,0.00204853,118300.0,118290.0,0.53291574]
[1753612844145,0.00204853,118300.0,118290.0,1.46778274]
[1753612844385,0.00204853,118300.0,118290.0,1.05778274]
[1753612844573,0.01050097,118300.0,118290.0,1.05778274]
[1753612844712,0.01050097,118300.0,118290.0,0.90904474]
[1753612844933,0.00204853,118300.0,118290.0,0.90904474]
[1753612849746,0.01050104,118300.0,118290.0,0.90904474]
[1753612849965,0.00204853,118300.0,118290.0,0.90904474]
[1753612851813,0.00204853,118300.0,118290.0,1.24904474]
[1753612852808,4.853e-05,118300.0,118290.0,1.24904474]
[1753612858198,4.853e-05,118300.0,118290.0,0.87291574]
[1753612858436,4.853e-05,118300.0,118290.0,2.57257774]
[1753612858629,4.853e-05,118300.0,118290.0,2.52257774]
[1753612859658,4.853e-05,118300.0,118290.0,1.98277974]
[1753612860527,4.853e-05,118300.0,118290.0,1.93277974]
[1753612862232,4.853e-05,118300.0,118290.0,0.87291574]
[1753612862638,4.853e-05,118300.0,118290.0,1.96851374]
[1753612862848,4.853e-05,118300.0,118290.0,1.84754574]
[1753612864713,4.853e-05,118300.0,118290.0,1.80727174]
[1753612870823,4.853e-05,118300.0,118290.0,5.47879374]
[1753612871065,0.16905686,118340.0,118320.0,0.17748478]
[1753612871066,0.18435686,118340.0,118320.0,0.17748478]
[1753612871300,0.01907989,118330.0,118320.0,0.16903313]
[1753612871517,0.01907989,118330.0,118320.0,0.33588464]
[1753612871518,0.01907947,118330.0,118320.0,0.33588464]
[1753612871737,0.02753019,118330.0,118320.0,0.41191043]
[1753612871963,0.02753019,118330.0,118320.0,0.42881352]
[1753612872414,0.01907947,118330.0,118320.0,0.42036201]
[1753612872658,0.03598099,118330.0,118320.0,0.43465945]
[1753612872872,0.01062889,118330.0,118320.0,0.46001405]
[1753612873095,0.00849881,118330.0,118320.0,0.49221642]
[1753612873317,4.852e-05,118330.0,118320.0,0.50861642]
[1753612873537,0.02576289,118340.0,118330.0,0.16901884]
[1753612873757,0.03681835,118340.0,118330.0,0.26194701]
[1753612874019,0.20382291,118340.0,118330.0,0.27669614]
[1753612874219,0.0243682,118340.0,118330.0,0.27669614]
[1753612874439,0.0243682,118340.0,118330.0,0.29414516]
[1753612874650,0.0243682,118340.0,118330.0,0.30259603]
[1753612874928,0.0243682,118340.0,118330.0,0.31104682]
[1753612875146,0.0243682,118340.0,118330.0,0.30259603]
[1753612875360,0.0243682,118340.0,118330.0,0.31104682]
[1753612875571,0.03281842,118340.0,118330.0,0.3025961]
[1753612875996,0.0243682,118340.0,118330.0,0.3025961]
[1753612876254,0.01305503,118340.0,118330.0,0.31949769]
[1753612876454,0.02150482,118340.0,118330.0,0.3311182]
[1753612876672,0.02995476,118340.0,118330.0,0.33111827]
[1753612876923,0.01505503,118340.0,118330.0,0.33324834]
[1753612877113,0.03195498,118340.0,118330.0,0.3078961]
[1753612877395,0.03195498,118340.0,118330.0,0.32479761]
[1753612877634,0.03195498,118340.0,118330.0,0.33324826]
[1753612877866,0.02350497,118340.0,118330.0,0.33324826]
[1753612878331,0.02350497,118340.0,118330.0,0.32479761]
[1753612878570,0.02350497,118340.0,118330.0,0.33324826]
[1753612879278,0.0235049,118340.0,118330.0,0.34169884]
[1753612879963,0.0235049,118340.0,118330.0,0.33324826]
[1753612880230,0.0235049,118340.0,118330.0,0.34169884]
[1753612880641,0.02350482,118340.0,118330.0,0.34169841]
[1753612880859,0.02350482,118340.0,118330.0,0.3332479]
[1753612881083,0.01505503,118340.0,118330.0,0.33324762]
[1753612881294,0.00448531,118340.0,118330.0,0.34169806]
[1753612881581,0.02138461,118340.0,118330.0,0.34844762]
[1753612881811,0.01293489,118340.0,118330.0,0.37219806]
[1753612882034,0.01293496,118340.0,118330.0,0.37219806]
[1753612882478,0.02138475,118340.0,118330.0,0.35529711]
[1753612882956,0.01293496,118340.0,118330.0,0.34844755]
[1753612883214,0.02138475,118340.0,118330.0,0.36344762]
[1753612883420,0.02138468,118340.0,118330.0,0.37189806]
[1753612883893,0.00448531,118340.0,118330.0,0.37189806]
[1753612884122,0.01293496,118340.0,118330.0,0.37189806]
[1753612884349,0.02138475,118340.0,118330.0,0.36344762]
[1753612884798,0.02138475,118340.0,118330.0,0.35499711]
[1753612885010,0.00448531,118340.0,118330.0,0.35499711]
[1753612885215,0.02138468,118340.0,118330.0,0.35499711]
[1753612885474,0.02138468,118340.0,118330.0,0.36344762]
[1753612885697,0.01293489,118340.0,118330.0,0.37189806]
[1753612885913,0.02138461,118340.0,118330.0,0.37189806]
[1753612886125,0.02138461,118340.0,118330.0,0.36344762]
[1753612886359,0.00448531,118340.0,118330.0,0.37189806]
[1753612886628,0.00448531,118340.0,118330.0,2.16741406]
[1753612887512,0.00248531,118340.0,118330.0,2.00151406]
[1753612888222,0.00348531,118340.0,118330.0,2.00151406]
[1753612890033,0.13379611,118350.0,118340.0,0.23455381]
[1753612890308,0.13379611,118350.0,118340.0,0.49412105]
[1753612890720,0.1422454,118350.0,118340.0,0.48567111]
[1753612891141,0.13379611,118350.0,118340.0,0.48567111]
[1753612891358,0.1422454,118350.0,118340.0,0.48567118]
[1753612891563,0.31323632,118350.0,118340.0,0.46877088]
[1753612891775,0.14424597,118350.0,118340.0,0.46222103]
[1753612891993,0.14424597,118350.0,118340.0,0.47067111]
[1753612892219,0.13579653,118350.0,118340.0,0.47067111]
[1753612892428,0.14424597,118350.0,118340.0,0.46222103]
[1753612893095,0.14424597,118350.0,118340.0,0.44602103]
[1753612893787,0.28984901,118350.0,118340.0,0.10192632]
[1753612894001,0.32114901,118350.0,118340.0,0.40985088]
[1753612894223,0.32114901,118350.0,118340.0,0.43259088]
[1753612894730,0.28988901,118350.0,118340.0,0.43259088]
[1753612895387,0.28988901,118350.0,118340.0,0.43573088]
[1753612896048,0.28988901,118350.0,118340.0,0.43773088]
[1753612899949,0.28792901,118350.0,118340.0,0.45323088]
[1753612902221,0.28792901,118350.0,118340.0,0.43773088]
[1753612902626,0.28792901,118350.0,118340.0,0.45273088]
[1753612903038,0.27947972,118350.0,118340.0,0.45273088]
[1753612903254,0.27947972,118350.0,118340.0,0.43773088]
[1753612903665,0.28143972,118350.0,118340.0,0.43773088]
[1753612905720,0.31405972,118350.0,118340.0,0.0844773]
[1753612905932,0.31405972,118350.0,118340.0,0.2233973]
[1753612906352,0.71405972,118350.0,118340.0,0.2233973]
[1753612907264,0.71405972,118350.0,118340.0,0.0844773]
[1753612907485,0.71405972,118350.0,118340.0,0.2233973]
[1753612911472,0.71233972,118350.0,118340.0,0.2233973]
[1753612913497,0.71233972,118350.0,118340.0,0.2461373]
[1753612914142,0.71233972,118350.0,118340.0,0.2233973]
[1753612914783,0.71233972,118350.0,118340.0,0.2481173]
[1753612915018,0.68143972,118350.0,118340.0,0.2531273]
[1753612916120,0.67947972,118350.0,118340.0,0.2531273]
[1753612916355,0.27947972,118350.0,118340.0,0.2531273]
[1753612917029,0.27103028,118350.0,118340.0,0.2851273]
[1753612919927,0.27103028,118350.0,118340.0,0.2697273]
[1753612920148,0.27103028,118350.0,118340.0,0.2855273]
[1753612920337,0.27103028,118350.0,118340.0,0.45453186]
[1753612921205,0.11893852,118350.0,118340.0,0.45453186]
[1753612921370,0.29637831,118350.0,118340.0,0.45453186]
[1753612922607,0.28792916,118350.0,118340.0,0.45453186]
[1753612926755,0.11893852,118350.0,118340.0,0.46298208]
[1753612926973,0.12738738,118350.0,118340.0,0.47988224]
[1753612927215,0.13583682,118350.0,118340.0,0.47143223]
[1753612927418,0.13583682,118350.0,118340.0,0.47988231]
[1753612927628,0.12738738,118350.0,118340.0,0.45453186]
[1753612927875,0.13583689,118350.0,118340.0,0.45453186]
[1753612928101,0.30482717,118350.0,118340.0,0.45453186]
[1753612928297,0.29637823,118350.0,118340.0,0.45453186]
[1753612929187,0.13583732,118350.0,118340.0,0.46298208]
[1753612929601,0.12738781,118350.0,118340.0,0.47143223]
[1753612929816,0.11893844,118350.0,118340.0,0.47143223]
[1753612930021,0.11893844,118350.0,118340.0,0.47988224]
[1753612930237,0.11893844,118350.0,118340.0,0.47143223]
[1753612930665,0.12738788,118350.0,118340.0,0.46298208]
[1753612930882,0.12738788,118350.0,118340.0,0.47143223]
[1753612931514,0.11893844,118350.0,118340.0,0.47988231]
[1753612931743,0.12738781,118350.0,118340.0,0.47143223]
[1753612931944,0.12738781,118350.0,118340.0,0.47988231]
[1753612933098,0.11048915,118350.0,118340.0,0.47988231]
[1753612933323,0.11893809,118350.0,118340.0,0.51423128]
[1753612933543,0.12738738,118350.0,118340.0,0.49733133]
[1753612933986,0.12738738,118350.0,118340.0,0.50578134]
[1753612934204,0.13583675,118350.0,118340.0,0.49733133]
[1753612934453,0.13383675,118350.0,118340.0,0.49733133]
[1753612934628,0.13483675,118350.0,118340.0,0.48888125]
[1753612934863,0.14328626,118350.0,118340.0,0.48888125]
[1753612935087,0.13483675,118350.0,118340.0,0.48888118]
[1753612935314,0.13483675,118350.0,118340.0,0.49733119]
[1753612935573,0.12638738,118350.0,118340.0,0.48888118]
[1753612935800,0.13483675,118350.0,118340.0,0.48888118]
[1753612936481,0.30382703,118350.0,118340.0,0.47198088]
[1753612936717,0.3038276,118350.0,118340.0,0.47198088]
[1753612937661,0.12638781,118350.0,118340.0,0.48043103]
[1753612938346,0.13483732,118350.0,118340.0,0.4804311]
[1753612938603,0.13483732,118350.0,118340.0,0.47198088]
[1753612938828,0.12638781,118350.0,118340.0,0.48043103]
[1753612939059,0.13483732,118350.0,118340.0,0.4804311]
[1753612939989,0.11753844,118350.0,118340.0,0.4804311]
[1753612940185,0.11753844,118350.0,118340.0,0.48888118]
[1753612940559,0.12598788,118350.0,118340.0,0.3415111]
[1753612940798,0.12598788,118350.0,118340.0,0.49312125]
[1753612941000,0.12598788,118350.0,118340.0,0.4846711]
[1753612941470,0.10064,118350.0,118340.0,0.4846711]
[1753612941698,0.10908894,118350.0,118340.0,0.51002091]
[1753612941903,0.12598703,118350.0,118340.0,0.51002098]
[1753612942119,0.12598703,118350.0,118340.0,0.50157119]
[1753612942331,0.13443618,118350.0,118340.0,0.51002106]
[1753612942816,0.13443618,118350.0,118340.0,0.51847085]
[1753612943032,0.11753795,118350.0,118340.0,0.51847035]
[1753612943258,0.10908894,118350.0,118340.0,0.51847035]
[1753612943458,0.10908887,118350.0,118340.0,0.51847035]
[1753612944146,0.11753788,118350.0,118340.0,0.51847035]
[1753612944525,0.12598703,118350.0,118340.0,0.50157084]
[1753612944768,0.10064,118350.0,118340.0,2.68540356]
[1753612945027,0.10064,118350.0,118340.0,1.65028256]
[1753612945431,0.10064,118350.0,118340.0,1.42986456]
[1753612945867,0.10064,118350.0,118340.0,1.55791856]
[1753612946271,0.10064,118350.0,118340.0,1.55991856]
[1753612947001,0.10064,118350.0,118340.0,2.04249056]
[1753612947442,0.10064,118350.0,118340.0,1.21539056]
[1753612947911,0.10064,118350.0,118340.0,1.15070756]
[1753612948779,0.09964,118350.0,118340.0,1.15070756]
[1753612949021,0.09964,118350.0,118340.0,1.37286756]
[1753612949229,0.09964,118350.0,118340.0,1.24568956]
[1753612949861,0.09964,118350.0,118340.0,1.30707556]
[1753612950941,0.09964,118350.0,118340.0,1.35485656]
[1753612951137,0.09964,118350.0,118340.0,1.00485656]
[1753612952067,0.09964,118350.0,118340.0,0.51402056]
[1753612952442,0.09964,118350.0,118340.0,1.41673856]
[1753612952647,0.09964,118350.0,118340.0,1.25376656]
[1753612953078,0.09964,118350.0,118340.0,1.28550156]
[1753612953314,0.09964,118350.0,118340.0,1.26086056]
[1753612953669,0.09964,118350.0,118340.0,1.23383256]
[1753612954119,0.09964,118350.0,118340.0,1.51455656]
[1753612954345,0.09964,118350.0,118340.0,1.13631556]
[1753612955120,0.09964,118350.0,118340.0,1.27372556]
[1753612956184,0.09964,118350.0,118340.0,1.58736056]
[1753612956839,0.09964,118350.0,118340.0,1.56386056]
[1753612957057,0.09964,118350.0,118340.0,1.96299856]
[1753612957490,0.09964,118350.0,118340.0,1.93441056]
[1753612958179,0.09964,118350.0,118340.0,2.30807556]
[1753612958396,0.09964,118350.0,118340.0,2.05061756]
[1753612958616,0.09964,118350.0,118340.0,1.70791856]
[1753612959237,0.09964,118350.0,118340.0,1.99284856]
[1753612960293,0.09964,118350.0,118340.0,2.24501656]
[1753612960520,0.09964,118350.0,118340.0,2.09105856]
[1753612960954,0.09964,118350.0,118340.0,2.07253056]
[1753612961484,0.09964,118350.0,118340.0,2.04661156]
[1753612962396,0.09964,118350.0,118340.0,2.51520956]
[1753612962625,0.09964,118350.0,118340.0,2.03643156]
[1753612962882,0.09964,118350.0,118340.0,0.85402056]
[1753612963117,0.09964,118350.0,118340.0,2.16998056]